Cogmind - Beta 11 X9 @@@ ROGUE MODE // 2021.12.26 @ 13:48:46 // Winter2021/Sauler Player: Yosh Result: Destroyed by S-43 Plague with Heavy Machine Gun Performance ------------- Evolutions (9) 4500 Regions Visited (16) 3200 Robots Destroyed (55) 275 Value Destroyed (1512) 1512 Prototype IDs (47) 940 Alien Tech Used (0) 0 Bonus (800) 800 TOTAL SCORE: 11227 Bonus ------- Entered DSFs 500 Aligned with FarCom 300 Cogmind --------- Core Integrity 0/1600 Matter 209/300 Energy 99/100 System Corruption 1% Temperature Cool (0) Movement Core (50) Location -1/Command Parts ------- > --- POWER (2) -------- (None) > --- PROPULSION (6) --- (None) > --- UTILITY (15) ----- Enhanced Optical Array Improved Hacking Suite Improved Hacking Suite System Shield Improved System Shield > --- WEAPON (2) ------- (None) > --- INVENTORY (5) ---- Energy Well (350) Superbattery (1500) Force Lance Peak State ------------ > --- POWER ------------ Micro Nuclear Core Micro Nuclear Core > --- PROPULSION ------- Cooled Cesium-ion Thruster Biomechanical Wings Q-thruster Q-thruster Q-thruster Q-thruster > --- UTILITY ---------- Energy Well Superbattery Enhanced Optical Array Reaction Control System Improved Hacking Suite Improved Hacking Suite Improved Hacking Suite Advanced Hacking Suite System Shield Improved System Shield Improved System Shield Advanced System Shield Advanced System Shield > --- WEAPON ----------- Great Axe Carbide Saw > --- INVENTORY -------- Neutrino Core Nuclear Pulse Array Stasis Projector Force Lance [Rating: 137] Favorites ----------- Power Nuclear Core Engine Light Ion Engine Power Core Nuclear Core Propulsion Armored Treads Treads Armored Treads Wheel Wheel Flight Unit Cooled Cesium-ion Thruster Utility System Shield Device Thief Drone Bay Storage Large Storage Unit Processor Enhanced Optical Array Hackware System Shield Protection Light Armor Plating Weapon EM Pulse Gun Energy Gun EM Pulse Gun Energy Cannon Ion Cannon Special Weapon Plasma Cutter Impact Weapon Heavy Flail Slashing Weapon Great Axe Piercing Weapon Force Lance Build | -11 -10 -10 -9 -9 -9 -8 -8 -7 -6 -5 -4 -3 -2 -2 -1 -1 ------- Run | Scr Mat Min Mat Min Exi Min Mat Fac Fac Fac Fac Res Res DSF Acc Com Slots Evolved 18 | . . . 2 . . . 2 2 2 2 2 2 2 . 2 . Power 1 | . . . . . . . . . . . . 1 . . . . Propulsion 4 | . . . 1 . . . . . . . 1 1 . . 1 . Utility 13 | . . . 1 . . . 2 2 2 2 1 . 2 . 1 . Weapon . | . . . . . . . . . . . . . . . . . Parts Attached 130 | 6 8 . 14 1 4 2 21 13 15 13 16 8 1 1 7 . Power 18 | 1 2 . 1 . . 2 2 2 1 2 2 2 . . 1 . Engine 4 | 1 2 . . . . . 1 . . . . . . . . . Core 14 | . . . 1 . . 2 1 2 1 2 2 2 . . 1 . Reactor . | . . . . . . . . . . . . . . . . . Propulsion 43 | 2 1 . 5 . . . 10 4 7 2 4 3 . 1 4 . Treads 16 | 2 1 . 5 . . . 8 . . . . . . . . . Leg . | . . . . . . . . . . . . . . . . . Wheel 1 | . . . . . . . 1 . . . . . . . . . Hover . | . . . . . . . . . . . . . . . . . Flight 26 | . . . . . . . 1 4 7 2 4 3 . 1 4 . Utility 45 | 1 2 . 4 . 2 . 4 5 6 9 8 2 1 . 1 . Device 16 | . . . 2 . 1 . . 2 1 5 3 1 1 . . . Storage 8 | 1 1 . . . 1 . 2 1 . . 1 . . . 1 . Processor 4 | . 1 . . . . . 1 . 1 1 . . . . . . Hackware 16 | . . . 1 . . . 1 2 4 3 4 1 . . . . Protection 1 | . . . 1 . . . . . . . . . . . . . Artifact . | . . . . . . . . . . . . . . . . . Weapon 24 | 2 3 . 4 1 2 . 5 2 1 . 2 1 . . 1 . Energy Gun 15 | 2 3 . 4 1 1 . 4 . . . . . . . . . Energy Cannon 1 | . . . . . . . 1 . . . . . . . . . Ballistic Gun . | . . . . . . . . . . . . . . . . . Ballistic Cannon . | . . . . . . . . . . . . . . . . . Launcher . | . . . . . . . . . . . . . . . . . Special Weapon 1 | . . . . . 1 . . . . . . . . . . . Impact Weapon 3 | . . . . . . . . 2 1 . . . . . . . Slashing Weapon 3 | . . . . . . . . . . . 2 1 . . . . Piercing Weapon 1 | . . . . . . . . . . . . . . . 1 . Special Melee Weapon . | . . . . . . . . . . . . . . . . . Unidentified Prototypes 5 | . . . . . 1 . 2 . 2 . . . . . . . Corrupted Parts 1 | . . . . . . 1 . . . . . . . . . . System Corruption 2 | . . . . . . 2 . . . . . . . . . . Parts Lost 43 | . 1 . 4 1 . . 2 . 1 7 4 1 . 3 18 1 Power 6 | . 1 . . . . . . . . 2 . . . . 3 . Propulsion 15 | . . . . . . . 1 . . 1 2 1 . 2 8 . Utility 14 | . . . 1 . . . . . 1 3 2 . . 1 5 1 Weapon 8 | . . . 3 1 . . 1 . . 1 . . . . 2 . Highest Loss Streak 18 | . 1 . 2 1 . . 2 . 1 5 2 1 . 4 18 1 Average Slot Usage (%) 96 | . 93 100 98 99 100 100 98 98 99 98 87 97 . 90 73 22 Engine 2 | . 14 14 5 . . . . . . . . . . . . . Core 6 | . . . 5 11 11 11 9 7 6 4 4 9 . 8 5 . Treads 18 | . 28 28 33 33 33 33 25 . . . . . . . . . Flight 7 | . . . . . . . . 21 20 17 21 23 . 19 17 . Device 8 | . . . 4 11 11 11 8 9 13 16 11 3 . 6 3 . Storage 11 | . 14 14 11 11 11 11 17 15 12 4 5 4 . 4 6 . Processor 3 | . 7 14 6 . . . . . . 10 5 4 . 4 4 4 Hackware 17 | . . . 4 11 11 11 17 26 32 29 34 40 . 39 32 18 Energy Gun 13 | . 28 28 21 21 22 22 17 . . . . . . . . . Impact Weapon 2 | . . . . . . . . 13 13 10 2 . . . . . Naked Turns . | . . . . . . . . . . . . . . . . . Heaviest Build 63 | 12 29 29 35 33 36 36 63 57 25 23 27 27 30 30 31 . Greatest Support 62 | 40 40 40 60 60 60 60 62 24 27 27 33 35 35 35 44 3 Greatest Overweight (x) 6 | . . . . . . . 6 5 . 1 2 . . . . . Average Overweight (x) . | . . . . . . . 1 . . . . . . . . . Largest Inventory Capacity 20 | 8 15 15 15 15 15 15 20 20 8 8 5 5 5 5 5 5 Average Capacity 12 | 7 14 15 15 15 15 15 18 8 8 7 5 5 5 5 5 5 Most Carried 20 | 4 15 15 15 15 15 15 20 20 8 8 5 5 4 5 5 3 Average Carried 11 | 2 10 14 14 14 14 15 16 8 7 7 4 4 4 4 2 3 Final Capacity 20 | 8 15 15 15 15 15 15 20 8 8 5 5 5 5 5 5 5 Final Carried 20 | 4 15 15 15 15 15 15 20 8 8 5 5 5 4 4 3 3 Class Distribution -------------------- 47% | Mutant 17% | Hacker-Mutant 14% | Wizard-Sprinter 12% | Hacker-Sprinter 5% | Hacker-Ninja Dominant Class ---------------- Mutant | -10/Materials Mutant | -10/Mines Mutant | -9/Materials Mutant | -9/Mines Mutant | -9/Exiles Mutant | -8/Mines Hacker-Mutant | -8/Materials Hacker-Sprinter | -7/Factory Hacker-Sprinter | -6/Factory Hacker-Ninja | -5/Factory Wizard-Sprinter | -4/Factory Wizard-Sprinter | -3/Research Wizard-Sprinter | -2/Research Wizard-Sprinter | -2/DSF Wizard-Sprinter | -1/Access Hacker-Mutant | -1/Command Resources | -11 -10 -10 -9 -9 -9 -8 -8 -7 -6 -5 -4 -3 -2 -2 -1 -1 ----------- Run | Scr Mat Min Mat Min Exi Min Mat Fac Fac Fac Fac Res Res DSF Acc Com Matter Collected 1033 | 218 87 30 115 20 . . 260 120 . 78 69 27 . 9 . . Remotely . | . . . . . . . . . . . . . . . . . Salvage Created 2448 | . 198 . 832 352 . . 619 91 . 289 67 . . . . . Parts 124 | . 24 . 43 15 . . 35 1 . 2 4 . . . . . Haulers Intercepted 6 | . . . 3 . . . 3 . . . . . . . . . Recyclers Shooed . | . . . . . . . . . . . . . . . . . Parts Field Recycled . | . . . . . . . . . . . . . . . . . Retrieved Matter . | . . . . . . . . . . . . . . . . . Parts Self-Destructed . | . . . . . . . . . . . . . . . . . Prevented . | . . . . . . . . . . . . . . . . . Kills | -11 -10 -10 -9 -9 -9 -8 -8 -7 -6 -5 -4 -3 -2 -2 -1 -1 ------- Run | Scr Mat Min Mat Min Exi Min Mat Fac Fac Fac Fac Res Res DSF Acc Com Combat Hostiles Destroyed 37 | . 7 . 13 7 . . 8 . . . 2 . . . . . Melee 2 | . . . . . . . . . . . 2 . . . . . Guns 25 | . 4 . 10 6 . . 5 . . . . . . . . . AOE 7 | . 2 . 1 1 . . 3 . . . . . . . . . Classes Destroyed 11 | . 5 . 4 1 . . . . . . 1 . . . . . Worker 2 | . 1 . . . . . 1 . . . . . . . . . Builder 2 | . 1 . . . . . 1 . . . . . . . . . Hauler 6 | . . . 3 . . . 3 . . . . . . . . . Recycler 5 | . . . 1 . . . 1 1 . 2 . . . . . . Operator 2 | . 1 . . . . . . . . . 1 . . . . . Watcher 1 | . . . 1 . . . . . . . . . . . . . Swarmer 6 | . 6 . . . . . . . . . . . . . . . Cutter 2 | . . . . . . . . . . . 2 . . . . . Grunt 24 | . 1 . 11 6 . . 6 . . . . . . . . . Duelist 2 | . . . . 1 . . 1 . . . . . . . . . Sentry 3 | . . . 2 . . . 1 . . . . . . . . . Best Kill Streak 6 | . 5 . 5 3 . . 6 1 . 1 2 . . . . . Combat Bots Only 5 | . 3 . 5 3 . . 3 . . . 2 . . . . . Max Kills in Single Turn 4 | . 2 . 2 1 . . 4 1 . 1 1 . . . . . Gunslinging 1 | . 1 . . . . . . . . . . . . . . . Exploded 2 | . 1 . 1 1 . . 2 . . . . . . . . . Melee 1 | . . . . . . . . . . . 1 . . . . . Uniques/NPCs Destroyed . | . . . . . . . . . . . . . . . . . Combat | -11 -10 -10 -9 -9 -9 -8 -8 -7 -6 -5 -4 -3 -2 -2 -1 -1 -------- Run | Scr Mat Min Mat Min Exi Min Mat Fac Fac Fac Fac Res Res DSF Acc Com Damage Taken 5886 | . 191 . 930 261 . . 731 78 86 432 541 94 . 112 2054 376 Core 2144 | . 10 . 146 13 . . 61 31 18 61 153 23 . 22 1257 349 Absorbed by Shields . | . . . . . . . . . . . . . . . . . Core Remaining (%) 91 | 100 . 96 . . . 60 88 95 97 93 86 98 . 98 . . Volleys Fired 110 | . 15 . 49 17 . . 29 . . . . . . . . . Largest 2 | . 2 . 2 2 . . 2 . . . . . . . . . Hottest 105 | . 90 . 85 80 . . 105 . . . . . . . . . Shots Fired 207 | . 30 . 91 30 . . 56 . . . . . . . . . Gun 207 | . 30 . 91 30 . . 56 . . . . . . . . . Cannon . | . . . . . . . . . . . . . . . . . Launcher . | . . . . . . . . . . . . . . . . . Special . | . . . . . . . . . . . . . . . . . Kinetic . | . . . . . . . . . . . . . . . . . Thermal 29 | . 5 . . . . . 24 . . . . . . . . . Explosive . | . . . . . . . . . . . . . . . . . Electromagnetic 178 | . 25 . 91 30 . . 32 . . . . . . . . . Robot Hit Streak 12 | . 12 . 11 9 . . 12 . . . . . . . . . Robot Miss Streak 4 | . 4 . 2 1 . . 2 . . . . . . . . . Penetration Max . | . . . . . . . . . . . . . . . . . Secondary Targets 5 | . 1 . 3 . . . 1 . . . . . . . . . Max Gunslinging Chain 1 | . 1 . 1 . . . 1 . . . . . . . . . Shots Hit Robots 166 | . 19 . 67 25 . . 44 1 . 3 7 . . . . . Core Hits 85 | . 10 . 32 14 . . 27 . . . 2 . . . . . Critical Kills . | . . . . . . . . . . . . . . . . . Critical Parts Destroyed 1 | . . . . . . . . . . . 1 . . . . . Critical Strikes 7 | . 2 . 2 1 . . 1 . . . 1 . . . . . Corrupt 6 | . 2 . 2 1 . . 1 . . . . . . . . . Smash 1 | . . . . . . . . . . . 1 . . . . . Melee Attacks 72 | . . . . . . . . 14 8 16 20 11 . . 3 . Impact 49 | . . . . . . . . 14 8 16 11 . . . . . Slashing 21 | . . . . . . . . . . . 9 11 . . 1 . Piercing 2 | . . . . . . . . . . . . . . . 2 . Sneak Attacks 4 | . . . . . . . . 1 . 2 1 . . . . . Combat Hostiles . | . . . . . . . . . . . . . . . . . Follow-up Attacks . | . . . . . . . . . . . . . . . . . Damage Inflicted 3856 | . 379 . 1321 441 . . 1047 120 . 191 357 . . . . . Guns 2190 | . 282 . 910 345 . . 653 . . . . . . . . . Cannons . | . . . . . . . . . . . . . . . . . Explosions 998 | . 97 . 411 96 . . 394 . . . . . . . . . Melee 668 | . . . . . . . . 120 . 191 357 . . . . . Ramming . | . . . . . . . . . . . . . . . . . Kinetic . | . . . . . . . . . . . . . . . . . Thermal 1127 | . 103 . 248 96 . . 680 . . . . . . . . . Explosive 163 | . . . 163 . . . . . . . . . . . . . Electromagnetic 1898 | . 276 . 910 345 . . 367 . . . . . . . . . Impact 463 | . . . . . . . . 120 . 191 152 . . . . . Slashing 205 | . . . . . . . . . . . 205 . . . . . Piercing . | . . . . . . . . . . . . . . . . . Highest Corruption 4 | . 1 1 . . . 2 4 . . 1 1 . . . 1 1 Average Corruption 1 | . 1 1 . . . 2 3 . . 1 1 . . . 1 1 Corruption Purged . | . . . . . . . . . . . . . . . . . Effects 7 | . 1 . . . . . 3 . . 1 . . . . 1 1 Message Errors 4 | . 1 . . . . . 2 . . . . . . . 1 . Heat Flow Errors 1 | . . . . . . . 1 . . . . . . . . . Energy Discharges 1 | . . . . . . . . . . 1 . . . . . . Data Loss (minor) 1 | . . . . . . . . . . . . . . . . 1 Overload Shots . | . . . . . . . . . . . . . . . . . Overflow Damage 383 | . . . 27 . . . 1 80 . 108 167 . . . . . Projectiles . | . . . . . . . . . . . . . . . . . Explosions 28 | . . . 27 . . . 1 . . . . . . . . . Melee 355 | . . . . . . . . 80 . 108 167 . . . . . Knockbacks 3 | . . . . . . . . . . 2 1 . . . . . Impact 3 | . . . . . . . . . . 2 1 . . . . . Kinetic . | . . . . . . . . . . . . . . . . . Secondary . | . . . . . . . . . . . . . . . . . Self-Inflicted Damage 412 | . 65 . 162 48 . . 137 . . . . . . . . . Shots 9 | . 2 . 3 1 . . 3 . . . . . . . . . Rammed . | . . . . . . . . . . . . . . . . . Targets Rammed . | . . . . . . . . . . . . . . . . . Kicked . | . . . . . . . . . . . . . . . . . Crushed . | . . . . . . . . . . . . . . . . . Highest Temperature 306 | . 114 . 306 84 . . 297 3 . . 15 . . . 3 . Average Temperature 82 | . 38 . 99 38 . . 97 3 . . 6 . . . 3 . Received Heat Transfer 885 | . 30 . 396 102 . . 243 30 18 18 12 . . . 9 27 Siege Activations . | . . . . . . . . . . . . . . . . . Robots Corrupted 3 | . 1 . 2 . . . . . . . . . . . . . Combat Hostiles 3 | . 1 . 2 . . . . . . . . . . . . . Parts Fried 14 | . 2 . 5 1 . . . 2 . 4 . . . . . . Impact Corruptions 5 | . . . . . . . . 1 . 3 1 . . . . . Robots Melted . | . . . . . . . . . . . . . . . . . Combat Hostiles . | . . . . . . . . . . . . . . . . . Parts Melted 2 | . . . . . . . 2 . . . . . . . . . Heat Transferred 1727 | . 161 . 350 100 . . 1116 . . . . . . . . . Parts Sabotaged . | . . . . . . . . . . . . . . . . . Parts Stolen . | . . . . . . . . . . . . . . . . . Parts Stripped . | . . . . . . . . . . . . . . . . . Power Chain Reactions 10 | . 2 . 4 1 . . 3 . . . . . . . . . Missiles Intercepted . | . . . . . . . . . . . . . . . . . Alert | -11 -10 -10 -9 -9 -9 -8 -8 -7 -6 -5 -4 -3 -2 -2 -1 -1 ------- Run | Scr Mat Min Mat Min Exi Min Mat Fac Fac Fac Fac Res Res DSF Acc Com Peak Influence 333 | . 211 . 282 178 . . 118 206 118 333 249 63 29 21 325 253 Initial 208 | . . . . 43 . . . 53 24 57 67 48 29 21 . 208 Average 76 | . 76 . 141 49 . . 50 88 51 165 84 15 29 10 81 224 Maximum Alert Level 1 | . 1 . 1 . . . . 1 . 1 1 . . . 1 1 Low Security (%) 93 | 100 90 100 75 100 . 100 100 93 100 92 95 100 100 100 75 . Level 1 6 | . 9 . 24 . . . . 6 . 7 4 . . . 24 100 Level 2 . | . . . . . . . . . . . . . . . . . Level 3 . | . . . . . . . . . . . . . . . . . Level 4 . | . . . . . . . . . . . . . . . . . Level 5 . | . . . . . . . . . . . . . . . . . High Security . | . . . . . . . . . . . . . . . . . Max Security . | . . . . . . . . . . . . . . . . . Squads Dispatched 28 | . 1 . 2 . . . . 4 3 5 5 2 . 1 3 2 Investigation 15 | . . . 1 . . . . 2 3 4 3 1 . . 1 . Extermination 3 | . . . . . . . . . . 1 1 1 . . . . Reinforcement 10 | . 1 . 1 . . . . 2 . . 1 . . 1 2 2 Assault . | . . . . . . . . . . . . . . . . . Garrison . | . . . . . . . . . . . . . . . . . Intercept . | . . . . . . . . . . . . . . . . . Construction Impeded 1 | . . . 1 . . . . . . . . . . . . . Haulers Reinforced . | . . . . . . . . . . . . . . . . . Active Scanning Responses . | . . . . . . . . . . . . . . . . . Cargo Convoy Interrupts . | . . . . . . . . . . . . . . . . . Stealth | -11 -10 -10 -9 -9 -9 -8 -8 -7 -6 -5 -4 -3 -2 -2 -1 -1 --------- Run | Scr Mat Min Mat Min Exi Min Mat Fac Fac Fac Fac Res Res DSF Acc Com Distress Signals 12 | . 3 . . . . . 2 1 . 1 3 1 . . 1 . Communications Jammed 8 | . . . . . . . . . . . 8 . . . . . Distress Signals 8 | . . . . . . . . . . . 8 . . . . . Times Spotted 224 | . 20 . 20 8 . . 22 18 12 19 25 10 . 4 53 13 Peak Tracking Total 34 | . 5 . 4 3 . . 4 4 4 11 7 6 . 4 34 13 Tactical Retreats 26 | . 2 . . 1 . . 1 5 2 5 4 1 . . 5 . Traps | -11 -10 -10 -9 -9 -9 -8 -8 -7 -6 -5 -4 -3 -2 -2 -1 -1 ------- Run | Scr Mat Min Mat Min Exi Min Mat Fac Fac Fac Fac Res Res DSF Acc Com Traps Triggered 6 | . . . . . . . 4 . 1 1 . . . . . . Indirectly . | . . . . . . . . . . . . . . . . . Trap Hack Attempts . | . . . . . . . . . . . . . . . . . Triggered . | . . . . . . . . . . . . . . . . . Disarmed 4 | . . . . . . . . . . . . 4 . . . . Reprogrammed . | . . . . . . . . . . . . . . . . . Reused . | . . . . . . . . . . . . . . . . . Traps Extracted . | . . . . . . . . . . . . . . . . . Installed . | . . . . . . . . . . . . . . . . . Triggered . | . . . . . . . . . . . . . . . . . Machines | -11 -10 -10 -9 -9 -9 -8 -8 -7 -6 -5 -4 -3 -2 -2 -1 -1 ---------- Run | Scr Mat Min Mat Min Exi Min Mat Fac Fac Fac Fac Res Res DSF Acc Com Machines Disabled 5 | . 1 . 4 . . . . . . . . . . . . . Max in Single Turn 2 | . 1 . 2 . . . . . . . . . . . . . Garrison Access 3 | . . . . . . . . . 2 . 1 . . . . . Machines Sabotaged 1 | . . . . . . . . . . . 1 . . . . . Garrisons Compromised . | . . . . . . . . . . . . . . . . . Overloaded Fab Kills . | . . . . . . . . . . . . . . . . . Hacking | -11 -10 -10 -9 -9 -9 -8 -8 -7 -6 -5 -4 -3 -2 -2 -1 -1 --------- Run | Scr Mat Min Mat Min Exi Min Mat Fac Fac Fac Fac Res Res DSF Acc Com Machines Accessed 84 | . 5 . 3 1 2 . 6 15 17 11 11 7 1 . 5 . Terminals 49 | . 5 . 3 . . . 4 10 8 5 6 3 1 . 4 . Fabricators 10 | . . . . . . . . 1 2 3 2 1 . . 1 . Repair Stations 4 | . . . . . . . 1 . 1 1 1 . . . . . Recycling Units 7 | . . . . . . . . 3 2 1 . 1 . . . . Scanalyzers 8 | . . . . . . . 1 1 2 1 1 2 . . . . Garrison Access 3 | . . . . . . . . . 2 . 1 . . . . . Total Hacks 323 | . 17 . 7 1 2 . 30 61 63 36 46 53 1 . 6 . Successful 225 | . 11 . 2 1 2 . 17 35 47 25 37 42 1 . 5 . Failed 97 | . 6 . 5 . . . 13 26 15 11 9 11 . . 1 . Catastrophic 8 | . 2 . 1 . . . 1 2 . . 1 . . . 1 . Database Lockouts 1 | . . . . . . . . . 1 . . . . . . . Manual 140 | . 12 . 4 . 1 . 8 26 22 12 22 32 . . 1 . Terminals 233 | . 17 . 7 . . . 20 47 39 20 37 41 1 . 4 . Fabricators 24 | . . . . . . . . 2 4 7 4 5 . . 2 . Repair Stations 10 | . . . . . . . 2 . 2 4 2 . . . . . Recycling Units 20 | . . . . . . . . 6 8 3 . 3 . . . . Scanalyzers 28 | . . . . . . . 8 6 6 2 2 4 . . . . Garrison Access 5 | . . . . . . . . . 4 . 1 . . . . . Terminal Hacks 128 | . 6 . 2 1 2 . 5 21 25 10 24 28 1 . 3 . Record 14 | . . . . . 1 . . . 6 1 1 5 . . . . Part Schematic 10 | . . . . . . . . 3 3 . . 4 . . . . Robot Schematic 1 | . . . . . . . . 1 . . . . . . . . Robot Analysis 5 | . . . . . . . . 2 1 . 1 1 . . . . Prototype ID Bank 7 | . 1 . . . . . . . 4 1 1 . . . . . Open Door 4 | . . . . 1 . . . . . . . . . . 3 . Open DSF 4 | . . . . . . . . 1 1 . 1 . 1 . . . Level Access Points 7 | . . . 1 . . . . 1 1 1 1 2 . . . . Branch Access Points 4 | . . . . . . . . 1 1 1 1 . . . . . Emergency Access Points 1 | . . . . . . . 1 . . . . . . . . . Terminal Index 6 | . . . . . . . . 1 1 1 2 1 . . . . Fabricator Index 5 | . . . . . . . . 1 1 1 1 1 . . . . Repair Station Index 2 | . . . . . . . . . . . 1 1 . . . . Recycling Unit Index 2 | . . . . . . . . . . . 1 1 . . . . Scanalyzer Index 1 | . . . . . . . . 1 . . . . . . . . Garrison Index 2 | . . . . . . . . . . 1 . 1 . . . . Unreport Threat 14 | . 2 . . . . . . 3 2 . 4 3 . . . . Locate Traps 6 | . 1 . . . . . . 1 . . 2 2 . . . . Disarm Traps 1 | . . . . . . . . . . . . 1 . . . . Dispatch Records 1 | . . . . . . . . 1 . . . . . . . . Security Status 2 | . . . . . . . . 1 . . 1 . . . . . Surveillance Status 1 | . . . . . . . . . . . 1 . . . . . Transport Status 1 | . . . . . . . 1 . . . . . . . . . Investigation Status 2 | . . . . . . . . . . . 1 1 . . . . Recall Investigation 8 | . . . . . . . . . 2 2 2 2 . . . . Hauler Manifests 3 | . 1 . 1 . . . 1 . . . . . . . . . Registered Components 2 | . 1 . . . . . 1 . . . . . . . . . Zone Layout 11 | . . . . . . . 1 3 2 1 2 2 . . . . EX-Prototype ID Bank 1 | . . . . . 1 . . . . . . . . . . . Fabricator Hacks 21 | . . . . . . . . 2 4 7 4 2 . . 2 . Network Status 1 | . . . . . . . . . . 1 . . . . . . Load Schematic 10 | . . . . . . . . 1 2 3 2 1 . . 1 . Build 10 | . . . . . . . . 1 2 3 2 1 . . 1 . Repair Station Hacks 8 | . . . . . . . 2 . 2 2 2 . . . . . Scan Component 4 | . . . . . . . 1 . 1 1 1 . . . . . Repair 4 | . . . . . . . 1 . 1 1 1 . . . . . Recycling Unit Hacks 14 | . . . . . . . . 2 6 3 . 3 . . . . Recycle Component 2 | . . . . . . . . . 2 . . . . . . . Process 3 | . . . . . . . . . 1 1 . 1 . . . . Report Inventory 6 | . . . . . . . . 2 2 1 . 1 . . . . Retrieve Matter 3 | . . . . . . . . . 1 1 . 1 . . . . Scanalyzer 24 | . . . . . . . 7 4 5 2 2 4 . . . . Insert Component 12 | . . . . . . . 4 2 2 1 1 2 . . . . Analyze 12 | . . . . . . . 3 2 3 1 1 2 . . . . Garrison Access Hacks 3 | . . . . . . . . . 2 . 1 . . . . . Seal Access 3 | . . . . . . . . . 2 . 1 . . . . . Unauthorized Hacks 27 | . 5 . . . . . 3 6 3 1 4 5 . . . . Terminals 25 | . 5 . . . . . 3 5 2 1 4 5 . . . . Assimilate 9 | . 2 . . . . . . 2 1 . 1 3 . . . . Botnet 13 | . 2 . . . . . 2 3 1 1 2 2 . . . . Operators 2 | . 1 . . . . . 1 . . . . . . . . . Sabotage 1 | . . . . . . . . . . . 1 . . . . . Fabricators . | . . . . . . . . . . . . . . . . . Repair Stations . | . . . . . . . . . . . . . . . . . Recycling Units 2 | . . . . . . . . 1 1 . . . . . . . Tunnel 2 | . . . . . . . . 1 1 . . . . . . . Scanalyzers . | . . . . . . . . . . . . . . . . . Garrison Access . | . . . . . . . . . . . . . . . . . Data Cores Recovered . | . . . . . . . . . . . . . . . . . Used . | . . . . . . . . . . . . . . . . . Hacking Detections 60 | . 5 . 3 . . . 5 13 13 9 5 5 . . 2 . Full Trace Events 11 | . . . 1 . . . . 1 2 3 2 1 . . 1 . Feedback Events 3 | . . . . . . . . . 1 1 . . . . 1 . Corruption 1 | . . . . . . . . . . . . . . . 1 . Hackware Fried 2 | . . . . . . . . . 1 1 . . . . . . Feedback Blocked . | . . . . . . . . . . . . . . . . . Robot Schematics Acquired 1 | . . . . . . . . 1 . . . . . . . . Robots Built . | . . . . . . . . . . . . . . . . . Authchips . | . . . . . . . . . . . . . . . . . Time . | . . . . . . . . . . . . . . . . . Total Robot Build Rating . | . . . . . . . . . . . . . . . . . Part Schematics Acquired 21 | . . . . . . . 3 5 5 1 1 6 . . . . Parts Built 12 | . . . . . . . . 1 2 3 3 1 . . 2 . Authchips . | . . . . . . . . . . . . . . . . . Time 426 | . . . . . . . . 36 78 152 75 50 . . 35 . Total Part Build Rating 60 | . . . . . . . . 3 10 17 13 5 . . 12 . Parts Repaired 4 | . . . . . . . 1 . 1 1 1 . . . . . Time 196 | . . . . . . . 26 . 50 40 80 . . . . . Parts Recycled 2 | . . . . . . . . . 2 . . . . . . . Recycled Matter 191 | . . . . . . . . . 91 31 . 69 . . . . Retrieved Matter 191 | . . . . . . . . . 91 31 . 69 . . . . Retrieved Components . | . . . . . . . . . . . . . . . . . Parts Scanalyzed 11 | . . . . . . . 3 2 2 1 1 2 . . . . Part Schematics Acquired 11 | . . . . . . . 3 2 2 1 1 2 . . . . Parts Damaged 1 | . . . . . . . . . 1 . . . . . . . Bothacking | -11 -10 -10 -9 -9 -9 -8 -8 -7 -6 -5 -4 -3 -2 -2 -1 -1 ------------ Run | Scr Mat Min Mat Min Exi Min Mat Fac Fac Fac Fac Res Res DSF Acc Com Used RIF Installer . | . . . . . . . . . . . . . . . . . Robots Hacked . | . . . . . . . . . . . . . . . . . Non-combat . | . . . . . . . . . . . . . . . . . Combat . | . . . . . . . . . . . . . . . . . Robot Hacks Applied . | . . . . . . . . . . . . . . . . . Relay Couplers Released . | . . . . . . . . . . . . . . . . . Fabnet Peak Effective % . | . . . . . . . . . . . . . . . . . Robots Rewired . | . . . . . . . . . . . . . . . . . Allies Hacked . | . . . . . . . . . . . . . . . . . Hacks Repelled . | . . . . . . . . . . . . . . . . . Allies | -11 -10 -10 -9 -9 -9 -8 -8 -7 -6 -5 -4 -3 -2 -2 -1 -1 -------- Run | Scr Mat Min Mat Min Exi Min Mat Fac Fac Fac Fac Res Res DSF Acc Com Total Allies 6 | . 1 . . . . . . 1 . . 1 3 . . . . Largest Group 2 | . 1 . . . . . . 1 . . 1 2 . . . . Highest-Rated Group 36 | . 10 . . . . . . 26 . . 10 36 . . . . Highest-Rated Ally 26 | . 10 . . . . . . 26 . . 10 26 . . . . Total Orders 2 | . . . . . . . 2 . . . . . . . . . EXPLORE 1 | . . . . . . . 1 . . . . . . . . . RETURN 1 | . . . . . . . 1 . . . . . . . . . Ally Attacks 3 | . . . . . . . 3 . . . . . . . . . Total Damage 19 | . . . . . . . 19 . . . . . . . . . Kills . | . . . . . . . . . . . . . . . . . Allies Corrupted . | . . . . . . . . . . . . . . . . . Allies Melted . | . . . . . . . . . . . . . . . . . Intel | -11 -10 -10 -9 -9 -9 -8 -8 -7 -6 -5 -4 -3 -2 -2 -1 -1 ------- Run | Scr Mat Min Mat Min Exi Min Mat Fac Fac Fac Fac Res Res DSF Acc Com Robot Analysis Total 5 | . . . . . . . . 2 1 . 1 1 . . . . Derelict Logs Recovered 1 | . . 1 . . . . . . . . . . . . . . Drone Launches 3 | . . . . . . . 3 . . . . . . . . . Drone Recoveries 3 | . . . . . . . 3 . . . . . . . . . Exploration | -11 -10 -10 -9 -9 -9 -8 -8 -7 -6 -5 -4 -3 -2 -2 -1 -1 ------------- Run | Scr Mat Min Mat Min Exi Min Mat Fac Fac Fac Fac Res Res DSF Acc Com Turns Passed 8749 | 89 833 258 876 770 988 304 1426 497 637 704 827 307 2 18 157 56 Spaces Moved 9099 | 50 439 158 406 405 577 178 644 1226 1158 1319 1634 414 3 54 365 69 Core 141 | 3 . . . . . . . . . 17 1 . . . 51 69 Treads 2745 | 47 439 158 406 405 577 178 535 . . . . . . . . . Legs . | . . . . . . . . . . . . . . . . . Wheels 123 | . . . . . . . 109 14 . . . . . . . . Hover . | . . . . . . . . . . . . . . . . . Flight 6090 | . . . . . . . . 1212 1158 1302 1633 414 3 54 314 . Fastest Speed 17 | 50 160 160 160 170 170 170 155 29 30 30 17 27 27 27 24 50 Average Speed 72 | 153 160 160 167 170 170 170 169 30 30 31 27 27 27 29 28 50 Slowest Speed 245 | 160 160 160 170 170 170 170 245 155 32 100 150 28 27 31 50 50 Overloaded Moves 57 | . . . . . . . . . . . 57 . . . . . Propulsion Burnouts . | . . . . . . . . . . . . . . . . . Robots Hopped 58 | . . . . . . . . 5 9 14 17 3 . . 10 . Cave-ins Triggered . | . . . . . . . . . . . . . . . . . Exploration Rate (%) 34 | 4 64 29 34 65 90 30 42 28 29 28 30 13 . 56 9 5 Regions Visited 16 Branch Regions 5 Pre-discovered Areas 3 | . . 1 . . . . . 1 1 . . . . . . . Known Exits Taken 8 | . . . . . . 1 1 1 1 1 1 1 1 . . . Unknown Exits Taken 7 | 1 1 1 1 1 1 . . . . . . . . . 1 . Scrap Searched 1 | . . 1 . . . . . . . . . . . . . . Spaces Dug 47 | . . . . . . . . 10 7 12 9 7 . . 2 . Terrain Destroyed 93 | . 3 . 24 10 . . 9 10 7 12 9 7 . . 2 . Melee 47 | . . . . . . . . 10 7 12 9 7 . . 2 . Projectile . | . . . . . . . . . . . . . . . . . AOE 46 | . 3 . 24 10 . . 9 . . . . . . . . . Terrain Rammed . | . . . . . . . . . . . . . . . . . Walls Destroyed . | . . . . . . . . . . . . . . . . . Machines Disabled . | . . . . . . . . . . . . . . . . . Actions | -11 -10 -10 -9 -9 -9 -8 -8 -7 -6 -5 -4 -3 -2 -2 -1 -1 --------- Run | Scr Mat Min Mat Min Exi Min Mat Fac Fac Fac Fac Res Res DSF Acc Com Total 10860 | 59 547 164 519 457 585 179 929 1325 1419 1574 1965 589 3 55 401 90 Wait 1286 | . 58 5 17 31 . . 189 54 220 212 295 154 . . 30 21 Move 8974 | 49 438 157 405 404 576 177 643 1216 1140 1291 1600 407 2 53 347 69 Hop 51 | . . . . . . . . 4 8 13 16 3 . . 7 . Pick Up 128 | 4 16 1 17 2 2 . 24 10 13 17 11 7 . 1 3 . Fast Attach 38 | 6 3 . 3 1 . . 10 1 4 2 5 2 . . 1 . Attach 51 | . 1 . 6 . 1 . 3 8 3 6 10 5 1 1 6 . Detach 14 | . 2 . 1 . . . . 3 2 . 3 . . . 3 . Swap 41 | . 4 . 5 . 3 2 8 4 8 5 1 1 . . . . Drop 104 | . 10 1 16 2 3 . 23 14 14 13 4 3 . . 1 . Fire 110 | . 15 . 49 17 . . 29 . . . . . . . . . Melee 63 | . . . . . . . . 11 7 15 20 7 . . 3 . Ram . | . . . . . . . . . . . . . . . . . Kick . | . . . . . . . . . . . . . . . . . Crush . | . . . . . . . . . . . . . . . . . Escape Stasis . | . . . . . . . . . . . . . . . . . Rewire . | . . . . . . . . . . . . . . . . . Trap . | . . . . . . . . . . . . . . . . . Miscellaneous . | . . . . . . . . . . . . . . . . . Route ------- -11/Scrapyard -10/Materials -10/Mines -9/Materials (discovered 4 exits: *Mat x3 / *Min) -9/Mines (discovered 3 exits: *Mat x2 / *Exi) -9/Exiles -8/Mines -8/Materials -7/Factory (discovered 6 exits: *Fac x4 / *Low x2) -6/Factory (discovered 8 exits: *Fac x4 / Low x2 / *Ext x2) -5/Factory (discovered 6 exits: *Fac x4 / *Upp x2) -4/Factory (discovered 7 exits: *Res x4 / Upp x2 / Arm) -3/Research (discovered 3 exits: *Res x3) -2/Research -2/DSF -1/Access -1/Command History --------- Turn | Location | Event 17 | -11/Scrapyard | Discovered new exit (range 15) 90 | -11/Scrapyard | Entered Materials 301 | -10/Materials | Build established: Mutant 466 | -10/Materials | Discovered new exit (range 7) 923 | -10/Materials | Entered Mines 946 | -10/Mines | Learned location of Zion (-6) 1050 | -10/Mines | Found a hidden stash of uninstalled traps 1100 | -10/Mines | Discovered new exit (range 8) 1181 | -10/Mines | Entered Materials 1181 | -9/Materials | Evolved 2 slots: Propulsion x1, Utility x1 1554 | -9/Materials | Discovered new exit (range 16) 1684 | -9/Materials | Identified exit to Materials 1856 | -9/Materials | Discovered new exit (range 7) 2057 | -9/Materials | Entered Mines 2098 | -9/Mines | Discovered exit to Materials (range 15) 2586 | -9/Mines | Found the Drone Emporium 2594 | -9/Mines | Found Prototype Device 2791 | -9/Mines | Discovered exit to Materials (range 5) 2817 | -9/Mines | Deemed a non-threat by the Exiles lab entrance 2818 | -9/Mines | Discovered new exit (range 5) 2827 | -9/Mines | Entered Exiles 2870 | -9/Exiles | Met 8R-AWN 2897 | -9/Exiles | Met EX-HEX 2943 | -9/Exiles | Met EX-BIN 2967 | -9/Exiles | Aligned with FarCom system 2969 | -9/Exiles | Given EX-Vault access code 3008 | -9/Exiles | Opened EX-Vault 3072 | -9/Exiles | Warned to stay clear of 0b10 Research branches 3134 | -9/Exiles | Identified Thief Drone Bay 3138 | -9/Exiles | Found Superbattery 3226 | -9/Exiles | Met EX-DEC 3324 | -9/Exiles | Visited The Gauntlet 3595 | -9/Exiles | Discovered new exit (range 14) 3815 | -9/Exiles | Left Exiles lab with Superbattery 3815 | -9/Exiles | Entered Mines 4108 | -8/Mines | Discovered exit to Materials (range 5) 4119 | -8/Mines | Entered Materials 4119 | -8/Materials | Evolved 2 slots: Utility x2 4447 | -8/Materials | Build established: Hacker-Mutant 4642 | -8/Materials | Discovered new exit (range 8) 4701 | -8/Materials | Repaired EM Pulse Gun 5543 | -8/Materials | Identified exit to Factory 5545 | -8/Materials | Entered Factory 5545 | -7/Factory | Evolved 2 slots: Utility x2 5646 | -7/Factory | Fabricated Hacking Suite? 5777 | -7/Factory | Discovered new exit (range 2) 5842 | -7/Factory | Identified exit to Lower Caves 5881 | -7/Factory | Build established: Hacker-Sprinter 5918 | -7/Factory | Identified exit to Factory 6042 | -7/Factory | Entered another Factory area 6042 | -6/Factory | Evolved 2 slots: Utility x2 6111 | -6/Factory | System Shield fried by hacking feedback 6142 | -6/Factory | Fabricated Imp. Hacking Suite? 6257 | -6/Factory | Discovered new exit (range 15) 6362 | -6/Factory | Central database locked down 6362 | -6/Factory | Identified exit to Lower Caves 6362 | -6/Factory | Identified exit to Extension 6482 | -6/Factory | Fabricated Imp. Hacking Suite (x1) 6525 | -6/Factory | Identified exit to Factory 6554 | -6/Factory | Repaired Broken Cld. Cesium-ion Thruster? 6679 | -6/Factory | Entered another Factory area 6679 | -5/Factory | Evolved 2 slots: Utility x2 6735 | -5/Factory | Discovered new exit (range 14) 6927 | -5/Factory | Identified exit to Upper Caves 6975 | -5/Factory | Build established: Hacker-Ninja 6981 | -5/Factory | Fabricated Lrn. Terrain Scanner? 7011 | -5/Factory | Fabricated Imp. Hacking Suite? 7167 | -5/Factory | System Shield fried by hacking feedback 7177 | -5/Factory | Identified exit to Factory 7214 | -5/Factory | Fabricated Imp. Hacking Suite? 7237 | -5/Factory | Repaired Cld. Cesium-ion Thruster? 7262 | -5/Factory | Spotted B-75 Beast 7380 | -5/Factory | Lost 5 parts (1p1n2u1w) 7383 | -5/Factory | Entered another Factory area 7383 | -4/Factory | Evolved 2 slots: Propulsion x1, Utility x1 7516 | -4/Factory | Fabricated Imp. System Shield? 7632 | -4/Factory | Identified exit to Research 7635 | -4/Factory | Identified exit to Upper Caves 7635 | -4/Factory | Identified exit to Armory 7680 | -4/Factory | Build established: Wizard-Sprinter 7837 | -4/Factory | Fabricated Mic. Nuclear Core? 7967 | -4/Factory | Repaired Cld. Cesium-ion Thruster 8210 | -4/Factory | Entered Research 8210 | -3/Research | Evolved 2 slots: Power x1, Propulsion x1 8221 | -3/Research | Identified exit to Research 8267 | -3/Research | Fabricated Cld. Cesium-ion Thruster? 8339 | -3/Research | Spotted B-86 Titan 8464 | -3/Research | Spotted B-86 Titan 8517 | -3/Research | Entered another Research area 8517 | -2/Research | Evolved 2 slots: Utility x2 8519 | -2/Research | Identified exit to DSF 8519 | -2/Research | Entered DSF 8526 | -2/DSF | Discovered new exit (range 19) 8537 | -2/DSF | Entered Access 8537 | -1/Access | Evolved 2 slots: Propulsion x1, Utility x1 8559 | -1/Access | Lost 4 parts (3n1u) 8591 | -1/Access | Fabricated Nuclear Pulse Array? 8668 | -1/Access | Core integrity fell below 50% 8691 | -1/Access | Discovered new exit (range 7) 8694 | -1/Access | Entered Command 8699 | -1/Command | Lost 18 parts (3p8n5u2w) 8724 | -1/Command | Core integrity fell below 20% 8750 | -1/Command | Destroyed by S-43 Plague with Heavy Machine Gun Last Messages --------------- >>Open(Door) Sealed Barrier opened. 08691_ Connecting with Terminal... >>Open(Door) Sealed Barrier opened. 08691_ EXIT=FOUND LOCATION=UNKNOWN GOAL=ESCAPE 08694_ ALERT: Rogue bot within command proximity. Terminate immediately. 08694_ Receiving FarCom transmissions... 08723_ Penetrated by Slug. 08726_ Slug penetrates Wall. 08728_ O-32 Director: "IFF HANDSHAKE FAILED. SECURING TERMINAL." 08731_ ALERT: Hostiles spotted, dispatching reinforcements to Terminal C010. 08732_ Slug penetrates Wall. 08733_ System corrupted: Component data lost. 08733_ Imp. System Shield destroyed. 08738_ ALERT: Suspicious intruders detected, dispatching Cutter reinforcements to area. Map ----- +----------------------------------------------------+ | ?????????????????????????????????????????????????? | | ?????????????????????????????????????????????????? | | ?????????????????????????????????????????????????? | | ?????????????????????????????????????????????????? | | ?????????????????????????????????????????????????? | | ?????????????????????????????????????????????????? | | ?????????????????????????????????????????????????? | | ?????????????????????????????????????????????????? | | ?????????????????????????????????????????????????? | | ??????????????????????????"??????????????????????? | | ?????????????????????????"""?????????????????????? | | ?????????????????????????"""?????????????????????? | | ?????????????????????????"""?????????????????????? | | ????????????????????????? ?????????????????????? | | ????????????????????????? ?????????????????????? | | ????????????????????????? ?s???????????????????? | | ????????????????????????##p#?????????????????????? | | ????????????????????????# ?????????????????????? | | ????????????????????????# ?????????????????????? | | ????????????????????????# s#?????????????????????? | | ????????????????????????# #?????????????????????? | | ????????????????????????# #?????????????????????? | | ????????????????????????# s#?????????????????????? | | ????????????????????????# k#?????????????????????? | | ????????????????????????# #?????????????????????? | | ????????????????????????#@R#?????????????????????? | | ????????????????????????# #?????????????????????? | | ????????????????????????# s#?????????????????????? | | ????????????????????????# #?????????????????????? | | ????????????????????????# #?????????????????????? | | ????????????????????????# #?????????????????????? | | ????????????????????????# #?????????????????????? | | ????????????????????????# #?????????????????????? | | ???????????????########?# #????????w????????????? | | ????############ #?# #?????????????????????? | | ??? # #?# #????????????????#????? | | ???? # #?#% ############ #????? | | ???? # #?# #????? | | ??# # #?#l H ?? | | ??# # #?# ] #????? | | ??# "" # #?# g############ #????? | | ??# """ # #?# #????????????????#????? | | ??#! "T # #?# g#?????????????????????? | | ??# """ # #?# g#?????????????????????? | | ??? "" # #?# #?????????????????????? | | ????? ?# #?# Y#?????????????????????? | | ??????? ????? ?## ##????????????????????? | | ???######+#########+#### #???????? #????? | | ???# # #????? | | ???# / #????? | +----------------------------------------------------+ Best States ------------- Heat Dissipation 52 Energy Generation 25 Energy Capacity 2050 Matter Stores 300 Matter Capacity 300 Sight Range 22 Robot Scan Range 14 Terrain Scan Range 24 Terrain Scan Density 210 ECM Strength 2 Jamming Range 12 Cloak Strength 2 Additional Mass Support 9 Armor Coverage 150 Evasion (%) 77 Targeting Accuracy 5 Recoil Reduction 3 Stasis Canceling 1 Offensive Hacking 50 Defensive Hacking 62 Item Schematics ----------------- Hacking Suite | -8/Materials | Scanalyzed Cesium-ion Thruster | -8/Materials | Scanalyzed Plasma Cutter | -8/Materials | Scanalyzed Imp. Cooling System | -7/Factory | Hacked Nuclear Pulse Array | -7/Factory | Hacked System Guard | -7/Factory | Hacked Mic. Nuclear Core | -7/Factory | Scanalyzed System Shield | -7/Factory | Scanalyzed Imp. Hacking Suite | -6/Factory | Hacked Lrn. Terrain Scanner | -6/Factory | Hacked Cld. Cesium-ion Thruster | -6/Factory | Scanalyzed Reaction Control System | -6/Factory | Hacked Imp. System Shield | -6/Factory | Scanalyzed Great Axe | -5/Factory | Scanalyzed Power Maul | -4/Factory | Scanalyzed Cloaking Device | -3/Research | Hacked Exp. Hacking Suite | -3/Research | Hacked Exp. Cesium-ion Thruster | -3/Research | Hacked Q-thruster | -3/Research | Scanalyzed Exp. System Shield | -3/Research | Hacked Force Lance | -3/Research | Scanalyzed Robot Schematics ------------------ S-27 Virus | -7/Factory | Hacked Fabricated ------------ Hacking Suite | x1 | -7/Factory Imp. Hacking Suite | x1 | -6/Factory Imp. Hacking Suite | x1 | -6/Factory Lrn. Terrain Scanner | x1 | -5/Factory Imp. Hacking Suite | x1 | -5/Factory Imp. Hacking Suite | x1 | -5/Factory Imp. System Shield | x1 | -4/Factory Mic. Nuclear Core | x2 | -4/Factory Cld. Cesium-ion Thruster | x1 | -3/Research Nuclear Pulse Array | x2 | -1/Access Alien Tech Used ----------------- None Achievements -------------- Cya! Denied? Hunted Maximum Efficiency Omniscient Cartographer Party Time Production Line Challenges ------------ None Game ------ Seed HackingSpikedLance Manual? 0 Play Time 03:00:13 Cumulative 24.4 hours Start 2021.12.25 @ 19:50:22 End 2021.12.26 @ 13:48:46 Sessions 3 Manual Loads 0 Difficulty Rogue Special Mode Winter2021/Sauler Game No. 16 Rogue 16 Adventurer 0 Explorer 0 Win Type - Total 0 Types 0/0/0/0/0/0/0/0/0 Lore% 30 Gallery% 31 Achievement% 29 Wizard Run 0 Options --------- ASCII 1 Keyboard 1 Movement Vi Keybinds 0 Fullscreen 1 Font 18/X11 Map View 76x50 Tactical HUD 1 Map Filters NONE Filters NONE Steam 1 RUN: 1431d38d-8e8b-4cfc-8e20-a2f50b5964b2